{"text_format":"1","workbook":"xlsx","n_sheets":11,"sheets":["入力シート（認定申請書）","入力シート(譲受人の決定)","入力シート（承認申請書）","第一面(5-1,-2,-3) ","第二面（5-1、-2、-3）","第四面（5-1、-2）","第三面（共同住宅等の場合）","第四面（5-3）","変更申請書（9-1）","第二面（9-1）","承認申請書"],"not_rendered":{"charts":0,"images":0,"macros":1,"external_links":0,"defined_names":11,"comments":0,"pivot_tables":0},"unopened":[],"bounds":{"document_bytes":16777216,"sheet_cells":100000,"rows_first":2000,"rows_last":500,"rows_between":2000,"halvings":0,"cell_chars":16384,"cell_head_chars":4096},"cells_cut":0,"cells_raw":0,"read":"whole","date_system":"1900"}

{"sheet":"入力シート（認定申請書）","index":0,"n_rows":42,"n_cols":11,"rows_kept":42,"cut":false,"hidden":false,"merged":[[10,1,10,8],[36,1,36,8],[37,1,37,8],[0,0,0,9],[16,9,19,9],[32,9,34,9],[32,1,34,8],[6,1,6,8],[7,1,7,8],[8,1,8,8],[9,0,9,8],[2,0,2,8],[1,0,1,8],[15,1,15,3],[12,1,12,2],[29,1,29,7],[28,1,28,7],[30,0,30,8]]}
["認定申請書入力シート"]
["入力項目",null,null,null,null,null,null,null,null,"備考"]
["第一面"]
["新築/増築・改築","新築",null,null,null,null,null,null,null,"プルダウンから選択してください。"]
["申請日","令和",8,"年",2,"月",24,"日",null,"申請日を入力してください。",{"$f":"DATE(C5+2018,E5,G5)","v":"2026-02-24"}]
["根拠条文","第１項",null,null,null,null,null,null,null,"プルダウンから選択してください。"]
["住所又は主たる事務所の所在地","姫路市○○",null,null,null,null,null,null,null,"住所又は主たる事務所の所在地を入力してください。"]
["申請者の氏名又は名称","○○　○○",null,null,null,null,null,null,null,"申請者の氏名又は名称を入力してください。"]
["代表者の氏名",null,null,null,null,null,null,null,null,"申請者が会社等の場合は代表者の氏名を入力してください。"]
["第二面"]
["【１．地名地番】","姫路市○○",null,null,null,null,null,null,null,"地名地番を入力してください。確認書又は設計住宅性能評価書と確認済書と統一してください。"]
["【２．敷地面積】",130,"㎡",null,null,null,null,null,null,"敷地面積を入力してください。"]
["【３．工事種別】",{"$f":"B4","v":"新築"}]
["【４．建築面積】",70,"㎡",null,null,null,null,null,null,"建築面積を入力してください。"]
["【５．床面積の合計】",110,"㎡",null,null,null,null,null,null,"床面積の合計を入力してください。"]
["【６．建て方】","一戸建ての住宅",null,null,null,null,null,null,null,"プルダウンから選択してください。\n共同住宅等の場合は第三面（共同住宅等の場合）を入力してください。"]
["【一戸建ての住宅の場合 : 各階の床面積】",1,"階",60,"㎡",null,null,null,null,"各階とその床面積を入力してください。\n階段面積、外部利用部分等を除いた床面積を入力してください。"]
[null,2,"階",40,"㎡"]
[null,null,"階",null,"㎡"]
[null,null,"階",null,"㎡"]
["【共同住宅等の場合：住戸の数】"]
["　建築物全体",null,"戸",null,null,null,null,null,null,"共同住宅等の場合は入力してください。"]
["　認定申請対象住戸",null,"戸",null,null,null,null,null,null,"共同住宅等の場合は入力してください。"]
["【７．建築物の高さ等】"]
["【最高の高さ】",6,"m",null,null,null,null,null,null,"最高の高さを入力してください。"]
["【最高の軒の高さ】",7,"m",null,null,null,null,null,null,"最高の軒の高さを入力してください。"]
["【階数】","（地上）",2,"階",null,null,null,null,null,"階数を入力してください。"]
[null,"（地下）",null,"階",null,null,null,null,null,"地下階がない場合は空白でも結構です。"]
["【８．構造】","木造",null,null,null,null,null,null,null,"プルダウンから選択してください。"]
["【９．長期使用構造等に係る構造及び設備の概要】","確認書による",null,null,null,null,null,null,null,"プルダウンから選択してください。"]
["第四面"]
["２．建築後の住宅の維持保全の方法及び期間"]
[null,"維持保全の方法：別紙維持保全計画書による\n定期点検等実施予定者：○○工務店（兵庫県姫路市）\n維持保全の期間：30年",null,null,null,null,null,null,null,"維持保全の方法、定期点検等実施予定者（所在地）、維持保全の期間を入力してください。\n（例）\n維持保全の方法：別紙維持保全計画書による\n定期点検等実施予定者：○○工務店（兵庫県姫路市）\n維持保全の期間：30年"]
[]
[]
["３．住宅の建築及び維持保全に係る資金計画"]
["　①　建築に係る資金計画","4000万円",null,null,null,null,null,null,null,"建築に係る資金計画を入力してください。"]
["　②　維持保全に係る資金計画","修繕費用積立：年12万円",null,null,null,null,null,null,null,"維持保全に係る資金計画を入力してください。"]
["４．住宅の建築の実施時期"]
["〔建築に関する工事の着手の予定年月日〕","令和",8,"年",3,"月",3,"日",null,"工事の着手の予定年月日を入力してください。",{"$f":"DATE(C40+2018,E40,G40)","v":"2026-03-03"}]
["〔建築に関する工事の完了の予定年月日〕","令和",8,"年",7,"月",3,"日",null,"工事の完了の予定年月日を入力してください。",{"$f":"DATE(C41+2018,E41,G41)","v":"2026-07-03"}]
["５．譲受人の決定の予定時期","令和",null,"年",null,"月",null,null,null,"根拠条文が第３項の場合入力してください。"]

{"sheet":"入力シート(譲受人の決定)","index":1,"n_rows":26,"n_cols":11,"rows_kept":26,"cut":false,"hidden":false,"merged":[[13,1,13,8],[17,1,19,8],[22,1,22,7],[5,1,7,1],[8,1,10,1],[14,1,14,2],[0,0,0,9],[15,0,15,7],[17,9,19,9],[21,1,21,7],[1,0,1,8],[2,0,2,8],[5,2,5,8],[6,2,6,8],[7,2,7,8],[8,2,8,8],[9,2,9,8],[10,2,10,8]]}
["変更認定申請書入力シート"]
["入力項目",null,null,null,null,null,null,null,null,"備考"]
["第一面"]
["新築/増築・改築","新築",null,null,null,null,null,null,null,{"$f":"'入力シート（認定申請書）'!J4","v":"プルダウンから選択してください。"}]
["申請日","令和",8,"年",2,"月",24,"日",null,{"$f":"'入力シート（認定申請書）'!J5","v":"申請日を入力してください。"},{"$f":"DATE(C5+2018,E5,G5)","v":"2026-02-24"}]
["住所又は主たる事務所の所在地","分譲事業者","姫路市安田〇丁目〇番地",null,null,null,null,null,null,{"$f":"'入力シート（認定申請書）'!J7","v":"住所又は主たる事務所の所在地を入力してください。"}]
["申請者の氏名又は名称",null,"○○工務店",null,null,null,null,null,null,{"$f":"'入力シート（認定申請書）'!J8","v":"申請者の氏名又は名称を入力してください。"}]
["代表者の氏名",null,"代表取締役　○○　○○",null,null,null,null,null,null,{"$f":"'入力シート（認定申請書）'!J9","v":"申請者が会社等の場合は代表者の氏名を入力してください。"}]
["住所又は主たる事務所の所在地","譲受人","姫路市●●",null,null,null,null,null,null,{"$f":"'入力シート（認定申請書）'!J7","v":"住所又は主たる事務所の所在地を入力してください。"}]
["氏名又は名称",null,"●●　●●",null,null,null,null,null,null,"氏名又は名称を入力してください。"]
["代表者の氏名",null,null,null,null,null,null,null,null,"譲受人が会社等の場合は代表者の氏名を入力してください。"]
["１．長期優良住宅建築等計画の認定番号",1,"号",null,null,null,null,null,null,"長期優良住宅建築等計画の認定番号を入力してください。"]
["２．長期優良住宅建築等計画の認定年月日","令和",7,"年",4,"月",5,"日",null,"長期優良住宅建築等計画の認定年月日を入力してください。"]
["３．認定に係る住宅の位置","姫路市○○",null,null,null,null,null,null,null,"認定に係る住宅の位置を入力して下さい。"]
["４．当初認定時の工事種別",{"$f":"B4","v":"新築"}]
["第二面"]
["１．建築後の長期優良住宅の維持保全の方法及び期間"]
[null,"維持保全の方法：別紙維持保全計画書による\n定期点検等実施予定者：○○工務店（兵庫県姫路市）\n維持保全の期間：30年",null,null,null,null,null,null,null,{"$f":"'入力シート（認定申請書）'!J33","v":"維持保全の方法、定期点検等実施予定者（所在地）、維持保全の期間を入力してください。\n（例）\n維持保全の方法：別紙維持保全計画書による\n定期点検等実施予定者：○○工務店（兵庫県姫路市）\n維持保全の期間：30年"}]
[]
[]
["２．住宅の建築及び維持保全に係る資金計画"]
["　①　建築に係る資金計画","4000万円",null,null,null,null,null,null,null,{"$f":"'入力シート（認定申請書）'!J37","v":"建築に係る資金計画を入力してください。"}]
["　②　維持保全に係る資金計画","修繕費用積立：年12万円",null,null,null,null,null,null,null,{"$f":"'入力シート（認定申請書）'!J38","v":"維持保全に係る資金計画を入力してください。"}]
["３．住宅の建築の実施時期"]
["〔建築に関する工事の着手の予定年月日〕","令和",7,"年",4,"月",12,"日",null,{"$f":"'入力シート（認定申請書）'!J40","v":"工事の着手の予定年月日を入力してください。"},{"$f":"DATE(C25+2018,E25,G25)","v":"2025-04-12"}]
["〔建築に関する工事の完了の予定年月日〕","令和",7,"年",8,"月",12,"日",null,{"$f":"'入力シート（認定申請書）'!J41","v":"工事の完了の予定年月日を入力してください。"},{"$f":"DATE(C26+2018,E26,G26)","v":"2025-08-12"}]

{"sheet":"入力シート（承認申請書）","index":2,"n_rows":13,"n_cols":11,"rows_kept":13,"cut":false,"hidden":false,"merged":[[11,1,11,8],[12,1,12,8],[6,1,6,8],[0,0,0,9],[10,1,10,2],[1,0,1,7],[9,1,9,8],[4,1,4,8],[5,1,5,8]]}
["承認申請書入力シート"]
["入力項目",null,null,null,null,null,null,null,null,"備考"]
["新築/増築・改築","新築",null,null,null,null,null,null,null,{"$f":"'入力シート（認定申請書）'!J4","v":"プルダウンから選択してください。"}]
["申請日","令和",8,"年",2,"月",24,"日",null,{"$f":"'入力シート（認定申請書）'!J5","v":"申請日を入力してください。"},{"$f":"DATE(C4+2018,E4,G4)","v":"2026-02-24"}]
["住所又は主たる事務所の所在地","姫路市○○",null,null,null,null,null,null,null,{"$f":"'入力シート（認定申請書）'!J7","v":"住所又は主たる事務所の所在地を入力してください。"}]
["申請者の氏名又は名称","○○　○○",null,null,null,null,null,null,null,{"$f":"'入力シート（認定申請書）'!J8","v":"申請者の氏名又は名称を入力してください。"}]
["代表者の氏名",null,null,null,null,null,null,null,null,{"$f":"'入力シート（認定申請書）'!J9","v":"申請者が会社等の場合は代表者の氏名を入力してください。"}]
["１．長期優良住宅建築等計画の認定番号",1,"号",null,null,null,null,null,null,{"$f":"'入力シート(譲受人の決定)'!J12","v":"長期優良住宅建築等計画の認定番号を入力してください。"}]
["２．長期優良住宅建築等計画の認定年月日","令和",7,"年",4,"月",5,"日",null,{"$f":"'入力シート(譲受人の決定)'!J13","v":"長期優良住宅建築等計画の認定年月日を入力してください。"},{"$f":"DATE(C9+2018,E9,G9)","v":"2025-04-05"}]
["３．認定に係る住宅の位置","姫路市●●",null,null,null,null,null,null,null,{"$f":"'入力シート(譲受人の決定)'!J14","v":"認定に係る住宅の位置を入力して下さい。"}]
["４．当初認定時の工事種別",{"$f":"B3","v":"新築"}]
["５．申請時における認定計画実施者の氏名","●●　●●",null,null,null,null,null,null,null,"申請時における認定計画実施者の氏名を入力してください。"]
["６．地位の承継が生じた原因","売買のため",null,null,null,null,null,null,null,"地位の承継が生じた原因を入力してください。"]

{"sheet":"第一面(5-1,-2,-3) ","index":3,"n_rows":38,"n_cols":23,"rows_kept":38,"cut":false,"hidden":false,"merged":[[35,1,35,22],[36,1,36,22],[37,1,37,22],[31,1,31,22],[29,1,29,22],[30,1,30,22],[32,1,32,22],[11,9,11,13],[11,14,11,21],[12,9,12,13],[1,0,1,22],[3,0,3,22],[4,0,4,22],[7,2,7,6],[9,9,10,13],[9,14,10,21],[12,14,12,21],[17,12,17,13],[23,1,23,6],[23,7,23,12],[23,13,23,22],[17,14,17,22],[19,1,19,22],[24,1,24,6],[24,7,24,12],[24,13,26,22],[25,2,25,5],[25,8,25,11],[26,1,26,6],[26,7,26,12]]}
["第一号様式（第二条関係）（日本産業規格Ａ列４番）"]
["（第一面）"]
[]
["認　　定　　申　　請　　書"]
[{"$f":"'入力シート（認定申請書）'!B4","v":"新築"}]
[null,null,null,null,null,null,null,null,null,null,null,null,null,null,null,null,"令和",{"$f":"'入力シート（認定申請書）'!C5","v":8},"年",{"$f":"'入力シート（認定申請書）'!E5","v":2},"月",{"$f":"'入力シート（認定申請書）'!G5","v":24},"日"]
[]
[null,null,"姫路市長",null,null,null,null,"殿"]
[]
[null,null,null,null,null,null,null,null,null,"申請者の住所又は　　　　　　　　　　　　主たる事務所の所在地",null,null,null,null,{"$f":"IF('入力シート（認定申請書）'!B7=\"\",\"\",'入力シート（認定申請書）'!B7)","v":"姫路市○○"}]
[]
[null,null,null,null,null,null,null,null,null,"申請者の氏名又は名称",null,null,null,null,{"$f":"IF('入力シート（認定申請書）'!B8=\"\",\"\",'入力シート（認定申請書）'!B8)","v":"○○　○○"}]
[null,null,null,null,null,null,null,null,null,"代表者の氏名",null,null,null,null,{"$f":"IF('入力シート（認定申請書）'!B9=\"\",\"\",'入力シート（認定申請書）'!B9)","v":""}]
[]
[]
[]
[]
[null,"　長期優良住宅の普及の促進に関する法律第５条",null,null,null,null,null,null,null,null,null,null,{"$f":"'入力シート（認定申請書）'!B6","v":"第１項"},null,"の規定に基づき、長期優良住宅建築等"]
[]
[null,"計画について認定を申請します。この申請書及び添付図書に記載の事項は、事実に相違ありません。"]
[]
[]
[null,"（本欄には記入しないでください。）"]
[null,"受付欄",null,null,null,null,null,"認定番号欄",null,null,null,null,null,"決　裁　欄"]
[null,"令和　 　年　 　月　 　日",null,null,null,null,null,"令和 　　年 　　月 　　日"]
[null,"第",null,null,null,null,"号","第",null,null,null,null,"号"]
[null,"係員氏名",null,null,null,null,null,"係員氏名"]
[]
[null,"（注意）"]
[null,"１．この様式において、「一戸建ての住宅」は、人の居住の用以外の用途に供する部分を有しな"]
[null,"　いものに限り、「共同住宅等」とは、共同住宅、長屋その他の一戸建ての住宅以外の住宅をい"]
[null,"　います。"]
[null,"２．法第５条第２項の規定に基づく申請にあっては、一戸建て住宅等分譲事業者及び譲受人の両"]
[null,"　者の氏名又は名称を記載してください。"]
[null,"３．申請者（法第５条第２項に基づく申請にあっては、一戸建て住宅等分譲事業者又は譲受人）"]
[null,"　が法人である場合には、代表者の氏名を併せて記載してください。"]
[null,"４．共同住宅等に係る申請にあっては、第三面を申請に係る住戸（認定を求める住戸）ごとに作"]
[null,"　成してください。"]

{"sheet":"第二面（5-1、-2、-3）","index":4,"n_rows":56,"n_cols":23,"rows_kept":56,"cut":false,"hidden":false,"merged":[[54,1,54,22],[55,1,55,22],[42,1,42,22],[15,14,15,15],[15,20,15,21],[49,1,49,22],[50,1,50,22],[51,1,51,22],[52,1,52,22],[53,1,53,22],[43,1,43,22],[44,1,44,22],[45,1,45,22],[46,1,46,22],[47,1,47,22],[48,1,48,22],[14,20,14,21],[26,1,26,21],[27,1,27,22],[28,1,28,22],[29,1,29,22],[16,16,16,17],[17,16,17,17],[14,14,14,15],[23,12,23,22],[22,8,22,13],[12,7,12,10],[30,1,30,15],[19,7,19,10],[20,7,20,10],[21,6,21,7],[21,11,21,12],[1,0,1,22],[3,0,3,22],[9,7,9,10],[11,7,11,10],[7,1,8,4],[7,6,8,22]]}
[]
["（第二面）"]
[]
["長　期　優　良　住　宅　建　築　等　計　画"]
[]
[null,"１．建築をしようとする住宅の位置、構造及び設備並びに規模に関する事項"]
[null,"［建築物に関する事項］"]
[null,"【１．地名地番】",null,null,null,null,{"$f":"'入力シート（認定申請書）'!B11","v":"姫路市○○"}]
[]
[null,"【２．敷地面積】",null,null,null,null,null,{"$f":"'入力シート（認定申請書）'!B12","v":130},null,null,null,"㎡"]
[null,"【３．工事種別】",null,null,null,null,{"$f":"IF('入力シート（認定申請書）'!B13=\"新築\",\"✓\",\"\")","v":"✓"},"新築",null,{"$f":"IF('入力シート（認定申請書）'!B13=\"増築・改築\",\"✓\",\"\")","v":""},"増築・改築"]
[null,"【４．建築面積】",null,null,null,null,null,{"$f":"'入力シート（認定申請書）'!B14","v":70},null,null,null,"㎡"]
[null,"【５．床面積の合計】",null,null,null,null,null,{"$f":"'入力シート（認定申請書）'!B15","v":110},null,null,null,"㎡"]
[null,"【６．建て方】",null,null,null,null,{"$f":"IF('入力シート（認定申請書）'!B16=\"一戸建ての住宅\",\"✓\",\"\")","v":"✓"},"一戸建ての住宅",null,null,null,null,{"$f":"IF('入力シート（認定申請書）'!B16=\"共同住宅等\",\"✓\",\"\")","v":""},"共同住宅等"]
[null,null,"【一戸建ての住宅の場合 : 各階の床面積】",null,null,null,null,null,null,null,null,null,{"$f":"IF('入力シート（認定申請書）'!B17=\"\",\"\",'入力シート（認定申請書）'!B17)","v":1},"階",{"$f":"IF('入力シート（認定申請書）'!D17=\"\",\"\",'入力シート（認定申請書）'!D17)","v":60},{"$f":"IF('入力シート（認定申請書）'!E18=\"\",\"\",'入力シート（認定申請書）'!E18)","v":"㎡"},"㎡",null,{"$f":"IF('入力シート（認定申請書）'!B18=\"\",\"\",'入力シート（認定申請書）'!B18)","v":2},"階",{"$f":"IF('入力シート（認定申請書）'!B18=\"\",\"\",'入力シート（認定申請書）'!D18)","v":40},null,"㎡"]
[null,null,null,null,null,null,null,null,null,null,null,null,{"$f":"IF('入力シート（認定申請書）'!B19=\"\",\"\",'入力シート（認定申請書）'!B19)","v":""},"階",{"$f":"IF('入力シート（認定申請書）'!D19=\"\",\"\",'入力シート（認定申請書）'!D19)","v":""},{"$f":"IF('入力シート（認定申請書）'!E19=\"\",\"\",'入力シート（認定申請書）'!E19)","v":"㎡"},"㎡",null,{"$f":"IF('入力シート（認定申請書）'!B20=\"\",\"\",'入力シート（認定申請書）'!B20)","v":""},"階",{"$f":"IF('入力シート（認定申請書）'!D20=\"\",\"\",'入力シート（認定申請書）'!D20)","v":""},{"$f":"IF('入力シート（認定申請書）'!E20=\"\",\"\",'入力シート（認定申請書）'!E20)","v":"㎡"},"㎡"]
[null,null,"【共同住宅等の場合：住戸の数】",null,null,null,null,null,null,null,null,"建築物全体",null,null,null,null,{"$f":"IF('入力シート（認定申請書）'!B16=\"一戸建ての住宅\",\"\",'入力シート（認定申請書）'!B22)","v":""},null,"戸"]
[null,null,null,null,null,null,null,null,null,null,null,"認定申請対象住戸",null,null,null,null,{"$f":"IF('入力シート（認定申請書）'!B16=\"一戸建ての住宅\",\"\",'入力シート（認定申請書）'!B23)","v":""},null,"戸"]
[null,"【７．建築物の高さ等】"]
[null,null,"【最高の高さ】",null,null,null,null,{"$f":"'入力シート（認定申請書）'!B25","v":6},null,null,null,"ｍ"]
[null,null,"【最高の軒の高さ】",null,null,null,null,{"$f":"'入力シート（認定申請書）'!B26","v":7},null,null,null,"ｍ"]
[null,null,"【階数】",null,"（地上）",null,{"$f":"'入力シート（認定申請書）'!C27","v":2},null,"階","（地下）",null,{"$f":"IF('入力シート（認定申請書）'!C28=\"\",\"\",'入力シート（認定申請書）'!C28)","v":""},null,"階"]
[null,"【８．構造】",null,null,null,null,null,null,{"$f":"'入力シート（認定申請書）'!B29","v":"木造"}]
[null,"【９．長期使用構造等に係る構造及び設備の概要】",null,null,null,null,null,null,null,null,null,null,{"$f":"'入力シート（認定申請書）'!B30","v":"確認書による"}]
[null,"【１０．確認の特例】"]
[null,null,"法第６条第２項の規定による申出の有無",null,null,null,null,null,null,null,null,null,null,"無",null,null,"有"]
[null,"【11. 住宅の品質確保の促進等に関する法律第６条の２第５項の適用の有無】　　　　　　　　　　　　　　　　"]
[null,"　住宅の品質確保の促進等に関する法律（平成11年法律第81号）第６条の２第３項又は第４項の規定に"]
[null,"　より、その住宅の構造及び設備が長期使用構造等である旨が記載された確認書（住宅の品質確保の促進"]
[null,"　等に関する法律施行規則（平成12年建設省令第20号）第７条の４第１項第１号に規定する別記第11号の"]
[null,"　４様式）若しくは住宅性能評価書又はこれらの写しの添付の有無",null,null,null,null,null,null,null,null,null,null,null,null,null,null,null,"無",null,null,"有"]
[]
[]
[]
[]
[]
[]
[]
[]
[]
[]
[]
[null,"（注意）"]
[null,"１．【６．建て方】の欄は、該当するチェックボックスに「✓」マークを入れてください。"]
[null,"２．【９．長期使用構造等に係る構造及び設備の概要】の欄について、【11. 住宅の品質確保の促"]
[null,"　進等に関する法律第６条の２第５項の適用の有無】の欄で「無」に「✓」マークを入れた場合に"]
[null,"　おいては、設計内容説明書を提出してください。"]
[null,"３．【10．確認の特例】の欄は、認定の申請に併せて建築基準法（昭和２５年法律第２０１号）　第６条第１"]
[null,"　項の規定による確認申請書を提出して適合審査を受けるよう申し出る場合においては「有」に、申し出ない"]
[null,"　場合においては「無」に「✓」マークを入れてください。"]
[null,"４．【11. 住宅の品質確保の促進等に関する法律第６条の２第５項の適用の有無】の欄は、住宅の品質確保の"]
[null,"　促進等に関する法律第６条の２第３項又は第４項の規定により、その住宅の構造及び設備が長期使用構造等"]
[null,"　である旨が記載された確認書若しくは住宅性能評価書又はこれらの写しを添付して申請する場合においては"]
[null,"　「有」に、添付しないで申請する場合においては「無」に「✓」マークを入れてください。"]
[null,"５．この面は、建築確認等他の制度の申請書の写しに必要事項を補うこと等により記載すべき事項の全てが明"]
[null,"　示された別の書面をもって代えることができます。"]

{"sheet":"第四面（5-1、-2）","index":5,"n_rows":31,"n_cols":22,"rows_kept":31,"cut":false,"hidden":false,"merged":[[26,1,26,22],[27,1,27,22],[28,1,28,22],[29,1,29,22],[30,1,30,22],[1,0,1,22],[4,2,6,22],[10,2,12,22],[15,2,17,22],[25,1,25,22]]}
[]
["（第四面：法第５条第１項又は第２項の規定に基づく申請の場合）"]
[]
[null,"２．建築後の住宅の維持保全の方法及び期間"]
[null,null,{"$f":"'入力シート（認定申請書）'!B33","v":"維持保全の方法：別紙維持保全計画書による\n定期点検等実施予定者：○○工務店（兵庫県姫路市）\n維持保全の期間：30年"}]
[]
[]
[]
[null,"３．住宅の建築及び維持保全に係る資金計画"]
[null,"　①　建築に係る資金計画"]
[null,null,{"$f":"'入力シート（認定申請書）'!B37","v":"4000万円"}]
[]
[]
[]
[null,"　②　維持保全に係る資金計画"]
[null,null,{"$f":"'入力シート（認定申請書）'!B38","v":"修繕費用積立：年12万円"}]
[]
[]
[]
[]
[null,"４．住宅の建築の実施時期"]
[null,null,"〔建築に関する工事の着手の予定年月日〕",null,null,null,null,null,null,null,null,null,null,null,null,"令和",{"$f":"'入力シート（認定申請書）'!C40","v":8},"年",{"$f":"'入力シート（認定申請書）'!E40","v":3},"月",{"$f":"'入力シート（認定申請書）'!G40","v":3},"日"]
[null,null,"〔建築に関する工事の完了の予定年月日〕",null,null,null,null,null,null,null,null,null,null,null,null,"令和",{"$f":"'入力シート（認定申請書）'!C41","v":8},"年",{"$f":"'入力シート（認定申請書）'!E41","v":7},"月",{"$f":"'入力シート（認定申請書）'!G41","v":3},"日"]
[]
[null,"　（注意）"]
[null,"　　１．３①欄には、建築に要する費用の概算額を記載してください。"]
[null,"　　２．３②欄には、住宅の修繕に要する費用の年間積立予定額を記載してください。"]
[null,"　　３．共同住宅等に係る申請である場合でも、３①及び②欄とも、一棟に係る費用を記載してくだ"]
[null,"　　　さい。"]
[null,"　　４．この面は、複数の住戸に関する情報を集約して記載すること等により記載すべき事項の全て"]
[null,"　　　が明示された別の書面をもって代えることができます。"]

{"sheet":"第三面（共同住宅等の場合）","index":6,"n_rows":22,"n_cols":18,"rows_kept":22,"cut":false,"hidden":false,"merged":[[20,1,20,22],[21,1,21,22],[15,1,15,22],[16,1,16,22],[17,1,17,22],[18,1,18,22],[19,1,19,22],[1,0,1,22],[5,7,5,10],[4,7,4,21],[6,1,7,6],[6,9,6,10],[7,9,7,10],[6,15,6,16],[7,15,7,16]]}
[]
["（第三面）"]
[]
[null,"〔申請に係る住戸に関する事項〕"]
[null,"【１．住戸の番号】",null,null,null,null,null,"※別紙による"]
[null,"【２．住戸の存する階】",null,null,null,null,null,null,null,null,null,"階"]
[null,"　　　　　　　　　　　　　　　【３．専用部分の床面積】",null,null,null,null,null,null,"階",null,null,"㎡",null,null,"階",null,null,"㎡"]
[null,null,null,null,null,null,null,null,"階",null,null,"㎡",null,null,"階",null,null,"㎡"]
[null,"【４．当該住戸への経路】"]
[null,null,"【 共用階段 】",null,null,null,null,null,"無",null,null,"有"]
[null,null,"【 共用廊下 】",null,null,null,null,null,"無",null,null,"有"]
[null,null,"【 エレベーター 】",null,null,null,null,null,"無",null,null,"有"]
[]
[]
[null,"（注意）"]
[null,"１．この面は、共同住宅等に係る申請の場合に作成してください。"]
[null,"２．住戸の階数が二以上である場合には、【３．専用部分の床面積】に各階の床面積を併せて記載"]
[null,"　してください。"]
[null,"３．【４．当該住戸への経路】の欄は該当するチェックボックスに「✓」マークを入れてください。"]
[null,"４．この面は、住宅性能表示等他の制度の申請書の写しに必要事項を補うこと、複数の住戸に関"]
[null,"　する情報を集約して記載すること等により記載すべき事項の全てが明示された別の書面をもって"]
[null,"　代えることができます。"]

{"sheet":"第四面（5-3）","index":7,"n_rows":24,"n_cols":22,"rows_kept":24,"cut":false,"hidden":false,"merged":[[23,1,23,22],[20,1,20,22],[1,0,1,22],[4,2,6,22],[9,2,11,22],[21,1,21,22],[22,1,22,22]]}
[]
["（第四面：法第５条第３項の規定に基づく申請の場合）"]
[]
[null,"２．建築後の住宅の維持保全の方法の概要"]
[null,null,{"$f":"'入力シート（認定申請書）'!B33","v":"維持保全の方法：別紙維持保全計画書による\n定期点検等実施予定者：○○工務店（兵庫県姫路市）\n維持保全の期間：30年"}]
[]
[]
[]
[null,"３．住宅の建築に係る資金計画"]
[null,null,{"$f":"'入力シート（認定申請書）'!B38","v":"修繕費用積立：年12万円"}]
[]
[]
[]
[null,"４．住宅の建築の実施時期"]
[null,null,"〔建築に関する工事の着手の予定年月日〕",null,null,null,null,null,null,null,null,null,null,null,null,"令和",{"$f":"'入力シート（認定申請書）'!C40","v":8},"年",{"$f":"'入力シート（認定申請書）'!E40","v":3},"月",{"$f":"'入力シート（認定申請書）'!G40","v":3},"日"]
[null,null,"〔建築に関する工事の完了の予定年月日〕",null,null,null,null,null,null,null,null,null,null,null,null,"令和",{"$f":"'入力シート（認定申請書）'!C41","v":8},"年",{"$f":"'入力シート（認定申請書）'!E41","v":7},"月",{"$f":"'入力シート（認定申請書）'!G41","v":3},"日"]
[]
[null,"５．譲受人の決定の予定時期",null,null,null,null,null,null,"令和",{"$f":"'入力シート（認定申請書）'!C42","v":0},"年",{"$f":"'入力シート（認定申請書）'!E42","v":0},"月"]
[]
[null,"（注意）"]
[null," 　１．３欄には、建築に要する費用の概算額を記載してください。また、共同住宅等に係る申請で"]
[null,"　　ある場合でも、一棟に係る費用を記載してください。"]
[null," 　２．この面は、複数の住戸に関する情報を集約して記載すること等により記載すべき事項の全て"]
[null,"　　が明示された別の書面をもって代えることができます。"]

{"sheet":"変更申請書（9-1）","index":8,"n_rows":46,"n_cols":23,"rows_kept":46,"cut":false,"hidden":false,"merged":[[44,1,44,22],[45,1,45,22],[47,1,47,23],[36,7,36,12],[39,1,39,22],[40,1,40,22],[41,1,41,22],[42,1,42,22],[43,1,43,22],[31,3,31,5],[33,1,33,6],[33,7,33,12],[33,13,33,22],[34,1,34,6],[34,7,34,12],[34,13,36,22],[35,2,35,5],[35,8,35,11],[36,1,36,6],[28,3,29,22],[11,11,11,15],[11,16,11,22],[13,11,14,15],[13,16,14,22],[15,11,15,15],[15,16,15,22],[16,11,16,15],[16,16,16,22],[18,1,18,22],[19,1,19,22],[22,4,22,8],[10,11,10,15],[10,16,10,22],[2,0,2,22],[3,0,3,22],[6,2,6,6],[8,11,9,15],[8,16,9,22]]}
["第五号様式（第十一条関係）（日本産業規格Ａ列４番）"]
[]
["変　更　認　定　申　請　書"]
[{"$f":"'入力シート(譲受人の決定)'!B4","v":"新築"}]
[null,null,null,null,null,null,null,null,null,null,null,null,null,null,null,null,"令和",{"$f":"'入力シート(譲受人の決定)'!C5","v":8},"年",{"$f":"'入力シート(譲受人の決定)'!E5","v":2},"月",{"$f":"'入力シート(譲受人の決定)'!G5","v":24},"日"]
[]
[null,null,"姫路市長",null,null,null,null,"殿"]
[]
[null,null,null,null,null,null,null,null,"分譲事業者",null,null,"住所又は\n主たる事務所の所在地",null,null,null,null,{"$f":"IF('入力シート(譲受人の決定)'!C6=\"\",\"\",'入力シート(譲受人の決定)'!C6)","v":"姫路市安田〇丁目〇番地"}]
[]
[null,null,null,null,null,null,null,null,null,null,null,"申請者の氏名又は名称",null,null,null,null,{"$f":"IF('入力シート(譲受人の決定)'!C7=\"\",\"\",'入力シート(譲受人の決定)'!C7)","v":"○○工務店"}]
[null,null,null,null,null,null,null,null,null,null,null,"代表者の氏名",null,null,null,null,{"$f":"IF('入力シート(譲受人の決定)'!C8=\"\",\"\",'入力シート(譲受人の決定)'!C8)","v":"代表取締役　○○　○○"}]
[]
[null,null,null,null,null,null,null,null,"譲　受　人",null,null,"住所又は\n主たる事務所の所在地",null,null,null,null,{"$f":"IF('入力シート(譲受人の決定)'!C9=\"\",\"\",'入力シート(譲受人の決定)'!C9)","v":"姫路市●●"}]
[]
[null,null,null,null,null,null,null,null,null,null,null,"氏名又は名称",null,null,null,null,{"$f":"IF('入力シート(譲受人の決定)'!C10=\"\",\"\",'入力シート(譲受人の決定)'!C10)","v":"●●　●●"}]
[null,null,null,null,null,null,null,null,null,null,null,"代表者の氏名",null,null,null,null,{"$f":"IF('入力シート(譲受人の決定)'!C11=\"\",\"\",'入力シート(譲受人の決定)'!C11)","v":""}]
[]
[null," 長期優良住宅の普及の促進に関する法律第９条第１項の規定に基づき、長期優良住宅建築等計画の"]
[null,"変更の認定を申請します。この申請書に記載の事項は、事実に相違ありません。"]
[]
[null,"１．長期優良住宅建築等計画の認定番号"]
[null,null,null,"第",{"$f":"'入力シート(譲受人の決定)'!B12","v":1},null,null,null,null,"号"]
[]
[null,"２．長期優良住宅建築等計画の認定年月日"]
[null,null,null,{"$f":"'入力シート(譲受人の決定)'!B13","v":"令和"},{"$f":"'入力シート(譲受人の決定)'!C13","v":7},"年",{"$f":"'入力シート(譲受人の決定)'!E13","v":4},"月",{"$f":"'入力シート(譲受人の決定)'!G13","v":5},"日"]
[]
[null,"３．認定に係る住宅の位置"]
[null,null,null,{"$f":"'入力シート(譲受人の決定)'!B14","v":"姫路市○○"}]
[]
[null,"４．当初認定時の工事種別"]
[null,null,null,{"$f":"'入力シート(譲受人の決定)'!B15","v":"新築"}]
[null,"（本欄には記入しないでください。）"]
[null,"受付欄",null,null,null,null,null,"認定番号欄",null,null,null,null,null,"決　裁　欄"]
[null,"令和 　　年 　　月 　　日",null,null,null,null,null,"令和 　　年 　　月 　　日"]
[null,"第",null,null,null,null,"号","第",null,null,null,null,"号"]
[null,"係員氏名",null,null,null,null,null,"係員氏名"]
[]
[null,"（注意）"]
[null,"　１．この様式において、「共同住宅等」とは、共同住宅、長屋その他の一戸建ての住宅（人の居"]
[null,"　　住の用以外の用途に供する部分を有しないものに限ります。）以外の住宅をいいます。"]
[null,"　２．一戸建て住宅等分譲事業者又は譲受人が法人である場合には、代表者の氏名を併せて記載し"]
[null,"　　てください。"]
[null,"　３．共同住宅等に係る申請にあたっては、第一面を申請に係る住戸ごとに作成し、第二面につい"]
[null,"　　ては、同時に申請する申請書のうちいずれかの申請書について作成し、他の申請書については"]
[null,"　　この面の作成を省略することができます。"]

{"sheet":"第二面（9-1）","index":9,"n_rows":30,"n_cols":22,"rows_kept":30,"cut":false,"hidden":false,"merged":[[28,1,28,22],[29,1,29,22],[1,0,1,22],[4,2,7,22],[11,2,13,22],[16,2,18,22],[26,1,26,22],[27,1,27,22]]}
[]
["（第二面）"]
[]
[null,"１．建築後の長期優良住宅の維持保全の方法及び期間"]
[null,null,{"$f":"'入力シート(譲受人の決定)'!B18","v":"維持保全の方法：別紙維持保全計画書による\n定期点検等実施予定者：○○工務店（兵庫県姫路市）\n維持保全の期間：30年"}]
[]
[]
[]
[]
[null,"２．住宅の建築及び維持保全に係る資金計画"]
[null,"　①　建築に係る資金計画"]
[null,null,{"$f":"'入力シート(譲受人の決定)'!B22","v":"4000万円"}]
[]
[]
[]
[null,"　②　維持保全に係る資金計画"]
[null,null,{"$f":"'入力シート(譲受人の決定)'!B23","v":"修繕費用積立：年12万円"}]
[]
[]
[]
[]
[null,"３．住宅の建築の実施時期"]
[null,null,"〔建築に関する工事の着手の予定年月日〕",null,null,null,null,null,null,null,null,null,null,null,null,"令和",{"$f":"'入力シート(譲受人の決定)'!C25","v":7},"年",{"$f":"'入力シート(譲受人の決定)'!E25","v":4},"月",{"$f":"'入力シート(譲受人の決定)'!G25","v":12},"日"]
[null,null,"〔建築に関する工事の完了の予定年月日〕",null,null,null,null,null,null,null,null,null,null,null,null,"令和",{"$f":"'入力シート(譲受人の決定)'!C26","v":7},"年",{"$f":"'入力シート(譲受人の決定)'!E26","v":8},"月",{"$f":"'入力シート(譲受人の決定)'!G26","v":12},"日"]
[]
[null,"　（注意）"]
[null,"　　１．２①欄には、建築に要する費用の概算額を記載してください。"]
[null,"　　２．２②欄には、住宅の修繕に要する費用の年間積み立て予定額を記載してください。"]
[null,"　　３．共同住宅等に係る申請である場合でも、２①及び②欄とも、一棟に係る費用を記載してくだ"]
[null,"　　　さい。"]

{"sheet":"承認申請書","index":10,"n_rows":50,"n_cols":23,"rows_kept":50,"cut":false,"hidden":false,"merged":[[34,3,34,22],[38,1,38,6],[38,7,38,12],[38,13,40,22],[39,2,39,5],[39,8,39,11],[40,1,40,6],[40,7,40,12],[31,3,32,22],[2,0,2,22],[3,0,3,22],[6,2,6,6],[8,11,9,15],[8,16,9,22],[10,11,10,15],[10,16,10,22],[11,11,11,15],[11,16,11,22],[19,4,19,8],[25,3,26,22],[28,3,28,5]]}
["第七号様式（第十四条関係）（日本産業規格Ａ列４番）"]
[]
["承　認　申　請　書"]
[{"$f":"'入力シート（承認申請書）'!B3","v":"新築"}]
[null,null,null,null,null,null,null,null,null,null,null,null,null,null,null,null,"令和",{"$f":"'入力シート（承認申請書）'!C4","v":8},"年",{"$f":"'入力シート（承認申請書）'!E4","v":2},"月",{"$f":"'入力シート（承認申請書）'!G4","v":24},"日"]
[]
[null,null,"姫路市長",null,null,null,null,"殿"]
[]
[null,null,null,null,null,null,null,null,null,null,null,"申請者の住所又は\n主たる事務所の所在地",null,null,null,null,{"$f":"IF('入力シート（承認申請書）'!B5=\"\",\"\",'入力シート（承認申請書）'!B5)","v":"姫路市○○"}]
[]
[null,null,null,null,null,null,null,null,null,null,null,"申請者の氏名又は名称",null,null,null,null,{"$f":"IF('入力シート（承認申請書）'!B6=\"\",\"\",'入力シート（承認申請書）'!B6)","v":"○○　○○"}]
[null,null,null,null,null,null,null,null,null,null,null,"代表者の氏名",null,null,null,null,{"$f":"IF('入力シート（承認申請書）'!B7=\"\",\"\",'入力シート（承認申請書）'!B7)","v":""}]
[]
[]
[null,"　長期優良住宅の普及の促進に関する法律第１０条の規定に基づき、認定計画実施者の地位の承継に"]
[null,"ついて承認を申請します。この申請書及び添付書類に記載の事項は、事実に相違ありません。"]
[]
[]
[null,"１．長期優良住宅建築等計画の認定番号"]
[null,null,null,"第",{"$f":"'入力シート（承認申請書）'!B8","v":1},null,null,null,null,"号"]
[]
[null,"２．長期優良住宅建築等計画の認定年月日"]
[null,null,null,"令和",{"$f":"'入力シート（承認申請書）'!C9","v":7},"年",{"$f":"'入力シート（承認申請書）'!E9","v":4},"月",{"$f":"'入力シート（承認申請書）'!G9","v":5},"日"]
[]
[null,"３．認定に係る住宅の位置"]
[null,null,null,{"$f":"'入力シート（承認申請書）'!B10","v":"姫路市●●"}]
[]
[null,"４．当初認定時の工事種別"]
[null,null,null,{"$f":"'入力シート（承認申請書）'!B11","v":"新築"}]
[]
[null,"５．申請時における認定計画実施者の氏名"]
[null,null,null,{"$f":"'入力シート（承認申請書）'!B12","v":"●●　●●"}]
[]
[null,"６．地位の承継が生じた原因"]
[null,null,null,{"$f":"'入力シート（承認申請書）'!B13","v":"売買のため"}]
[]
[null,"（本欄には記入しないでください。）"]
[null,"受付欄",null,null,null,null,null,"認定番号欄",null,null,null,null,null,"決　裁　欄"]
[null,"令和 　　年 　　月 　　日",null,null,null,null,null,"令和 　　年 　　月 　　日"]
[null,"第",null,null,null,null,"号","第",null,null,null,null,"号"]
[null,"係員氏名",null,null,null,null,null,"係員氏名"]
[]
[null,"（注意）"]
[null,"１．この様式において、「既存」とは、本申請が、法第５条第６項又は第７項の規定による認定の申請に"]
[null,"　係るものであることを指します。"]
[null,"２．申請者が法人である場合には、代表者の氏名を併せて記載してください。"]
[null,"３．４欄は、法第５条第１項から第５項までの規定による認定の申請により当初認定を受けた場合に記載"]
[null,"　してください。また、住宅の質の向上及び円滑な取引環境の整備のための長期優良住宅の普及の促進に"]
[null,"　関する法律等の一部を改正する法律（令和３年法律第48号）による改正前の法第５条第１項から第３項"]
[null,"　までの規定による認定の申請により当初認定を受けた場合も記載してください。"]